[Event "Early-Titled-Tuesday-Blitz-March-26-2024"]
[Site "Chess.com"]
[Date "2024.03.26"]
[Round "4"]
[White "MNyuyu"]
[Black "esteban062000"]
[Result "1-0"]
[WhiteElo "2415"]
[BlackElo "2156"]
[TimeControl "180+1"]
[EndTime "8:36:45 PDT"]
[Termination "MNyuyu won by resignation"]

1. d4 {[%clk 0:03:00.9]} 1... Nf6 {[%clk 0:02:59.3]} 2. Nf3 {[%clk 0:02:57.6]}
2... d5 {[%clk 0:02:58.8]} 3. Bf4 {[%clk 0:02:56.6]} 3... Bf5 {[%clk 0:02:59.1]}
4. e3 {[%clk 0:02:56.9]} 4... e6 {[%clk 0:02:59.5]} 5. c4 {[%clk 0:02:55.1]}
5... c6 {[%clk 0:02:59.1]} 6. Qb3 {[%clk 0:02:54.7]} 6... Qb6 {[%clk 0:02:57.1]}
7. c5 {[%clk 0:02:54.9]} 7... Qxb3 {[%clk 0:02:54.8]} 8. axb3 {[%clk 0:02:55.8]}
8... Nbd7 {[%clk 0:02:53.3]} 9. Nc3 {[%clk 0:02:55.3]} 9... Be7 {[%clk
0:02:44.9]} 10. b4 {[%clk 0:02:55.6]} 10... O-O {[%clk 0:02:44.7]} 11. b5 {[%clk
0:02:55.1]} 11... Rfe8 {[%clk 0:02:38.4]} 12. h3 {[%clk 0:02:52.5]} 12... Bxc5
{[%clk 0:02:23]} 13. dxc5 {[%clk 0:02:51.6]} 13... e5 {[%clk 0:02:23.4]} 14. Bh2
{[%clk 0:02:48.2]} 14... d4 {[%clk 0:02:21.7]} 15. Ne2 {[%clk 0:02:35.9]} 15...
Nxc5 {[%clk 0:02:10.1]} 16. Ng3 {[%clk 0:02:27.8]} 16... Bd7 {[%clk 0:01:24.1]}
17. bxc6 {[%clk 0:02:25]} 17... Bxc6 {[%clk 0:01:23.3]} 18. Bc4 {[%clk
0:02:10.8]} 18... b5 {[%clk 0:01:05.6]} 19. Be2 {[%clk 0:01:54.7]} 19... d3
{[%clk 0:00:58.7]} 20. Bd1 {[%clk 0:01:53.8]} 20... Red8 {[%clk 0:00:28.1]} 21.
O-O {[%clk 0:01:49]} 21... Bxf3 {[%clk 0:00:20.3]} 22. gxf3 {[%clk 0:01:44.3]}
22... g6 {[%clk 0:00:20.3]} 23. b4 {[%clk 0:01:35.7]} 23... Ncd7 {[%clk
0:00:09.8]} 24. Ne4 {[%clk 0:01:36]} 24... Nxe4 {[%clk 0:00:09.6]} 25. fxe4
{[%clk 0:01:35.9]} 25... Nb6 {[%clk 0:00:09.8]} 26. Bxe5 {[%clk 0:01:32.8]}
26... Nc4 {[%clk 0:00:10.3]} 27. Bd4 {[%clk 0:01:30.8]} 27... Nd2 {[%clk
0:00:07.8]} 28. Re1 {[%clk 0:01:25.8]} 28... a6 {[%clk 0:00:07.8]} 29. e5 {[%clk
0:01:22.2]} 29... Rd5 {[%clk 0:00:06.8]} 30. Kg2 {[%clk 0:01:21.4]} 30... Kg7
{[%clk 0:00:06.3]} 31. Bf3 {[%clk 0:01:20.8]} 1-0

[Event "Early-Titled-Tuesday-Blitz-March-26-2024"]
[Site "Chess.com"]
[Date "2024.03.26"]
[Round "4"]
[White "Irina_Mikhaylova"]
[Black "Igor_Lysyj"]
[Result "0-1"]
[WhiteElo "2331"]
[BlackElo "2833"]
[TimeControl "180+1"]
[EndTime "8:37:02 PDT"]
[Termination "Igor_Lysyj won by resignation"]

1. d4 {[%clk 0:03:00.9]} 1... Nf6 {[%clk 0:02:58.9]} 2. Nf3 {[%clk 0:03:00.9]}
2... d5 {[%clk 0:02:58.7]} 3. c4 {[%clk 0:03:00.9]} 3... e6 {[%clk 0:02:58.6]}
4. Bg5 {[%clk 0:02:59.5]} 4... dxc4 {[%clk 0:02:57]} 5. Qa4+ {[%clk 0:02:58.8]}
5... Bd7 {[%clk 0:02:55.1]} 6. Qxc4 {[%clk 0:02:58.9]} 6... c5 {[%clk
0:02:55.3]} 7. Nc3 {[%clk 0:02:44.8]} 7... cxd4 {[%clk 0:02:53.1]} 8. Nxd4
{[%clk 0:02:36.7]} 8... Nc6 {[%clk 0:02:51.1]} 9. Nxc6 {[%clk 0:01:52.4]} 9...
Bxc6 {[%clk 0:02:50.7]} 10. Rd1 {[%clk 0:01:52.6]} 10... Qb6 {[%clk 0:02:48.1]}
11. Qb3 {[%clk 0:01:51.8]} 11... Qxb3 {[%clk 0:02:46.5]} 12. axb3 {[%clk
0:01:52.7]} 12... Bb4 {[%clk 0:02:44.9]} 13. Bxf6 {[%clk 0:01:45.6]} 13... gxf6
{[%clk 0:02:44.3]} 14. Kd2 {[%clk 0:01:36.9]} 14... Ke7 {[%clk 0:01:52.4]} 15.
h4 {[%clk 0:01:30.4]} 15... a5 {[%clk 0:01:37.7]} 16. h5 {[%clk 0:01:08.4]}
16... a4 {[%clk 0:01:29.2]} 17. Rh4 {[%clk 0:01:08.5]} 17... Rhd8+ {[%clk
0:01:08.4]} 18. Kc2 {[%clk 0:00:45.4]} 18... axb3+ {[%clk 0:01:02]} 19. Kxb3
{[%clk 0:00:42.6]} 19... Bxc3 {[%clk 0:00:52.9]} 20. Rxd8 {[%clk 0:00:38.5]}
20... Rxd8 {[%clk 0:00:52.5]} 21. Kxc3 {[%clk 0:00:29.3]} 21... Rd1 {[%clk
0:00:52]} 22. Rh1 {[%clk 0:00:29.5]} 22... h6 {[%clk 0:00:51.8]} 23. f3 {[%clk
0:00:27.2]} 23... f5 {[%clk 0:00:48.5]} 24. Kc2 {[%clk 0:00:20.5]} 24... Ra1
{[%clk 0:00:47.7]} 25. e3 {[%clk 0:00:19.5]} 25... Bb5 {[%clk 0:00:44.2]} 26.
Bxb5 {[%clk 0:00:17.3]} 26... Rxh1 {[%clk 0:00:43.9]} 0-1

[Event "Early-Titled-Tuesday-Blitz-March-26-2024"]
[Site "Chess.com"]
[Date "2024.03.26"]
[Round "4"]
[White "Nechitaylo_Nikita"]
[Black "Dr_Thomas_Quilter"]
[Result "1-0"]
[WhiteElo "2378"]
[BlackElo "2089"]
[TimeControl "180+1"]
[EndTime "8:37:02 PDT"]
[Termination "Nechitaylo_Nikita won by resignation"]

1. d4 {[%clk 0:03:00.9]} 1... d6 {[%clk 0:02:56]} 2. e4 {[%clk 0:03:00.5]} 2...
g6 {[%clk 0:02:54.4]} 3. c4 {[%clk 0:02:57.1]} 3... e5 {[%clk 0:02:52.8]} 4. d5
{[%clk 0:02:56.8]} 4... Bg7 {[%clk 0:02:52.2]} 5. Nc3 {[%clk 0:02:56.1]} 5...
Ne7 {[%clk 0:02:44.6]} 6. f3 {[%clk 0:02:55.7]} 6... O-O {[%clk 0:02:44.3]} 7.
Be3 {[%clk 0:02:49.9]} 7... a6 {[%clk 0:02:43.6]} 8. Qd2 {[%clk 0:02:48.5]} 8...
f5 {[%clk 0:02:40.8]} 9. Bd3 {[%clk 0:02:31.2]} 9... f4 {[%clk 0:02:37.5]} 10.
Bf2 {[%clk 0:02:31.1]} 10... b5 {[%clk 0:02:37.9]} 11. cxb5 {[%clk 0:02:27.6]}
11... axb5 {[%clk 0:02:35.5]} 12. Nxb5 {[%clk 0:02:28.2]} 12... c6 {[%clk
0:02:21.7]} 13. dxc6 {[%clk 0:02:22.5]} 13... Nbxc6 {[%clk 0:02:21]} 14. Bc4+
{[%clk 0:02:22.2]} 14... Kh8 {[%clk 0:02:19.8]} 15. Qxd6 {[%clk 0:02:17.2]}
15... Qxd6 {[%clk 0:02:10.8]} 16. Nxd6 {[%clk 0:02:18.1]} 16... Nb4 {[%clk
0:02:10.9]} 17. Rc1 {[%clk 0:01:55]} 17... Ba6 {[%clk 0:02:07.5]} 18. Bc5 {[%clk
0:01:41.9]} 18... Bxc4 {[%clk 0:01:55]} 19. Bxb4 {[%clk 0:01:24.2]} 19... Bxa2
{[%clk 0:01:49.3]} 20. Nb5 {[%clk 0:01:20.7]} 20... Rfb8 {[%clk 0:01:42.7]} 21.
Bxe7 {[%clk 0:01:12]} 21... Rxb5 {[%clk 0:01:42.5]} 22. b4 {[%clk 0:01:11.7]}
22... Bf8 {[%clk 0:01:32.6]} 23. Bxf8 {[%clk 0:00:35.2]} 23... Rxf8 {[%clk
0:01:33.5]} 24. Nh3 {[%clk 0:00:14.1]} 24... Rxb4 {[%clk 0:01:23.2]} 25. O-O
{[%clk 0:00:14.7]} 25... Rd8 {[%clk 0:01:17.8]} 26. Rc5 {[%clk 0:00:14.5]} 26...
Be6 {[%clk 0:00:51.9]} 27. Ng5 {[%clk 0:00:12.4]} 27... Rd2 {[%clk 0:00:52.1]}
28. Nxe6 {[%clk 0:00:09.3]} 28... Rbb2 {[%clk 0:00:52]} 29. Rc8+ {[%clk
0:00:09.3]} 1-0

[Event "Early-Titled-Tuesday-Blitz-March-26-2024"]
[Site "Chess.com"]
[Date "2024.03.26"]
[Round "4"]
[White "JJDAREK"]
[Black "Coach_Istvanovszki"]
[Result "0-1"]
[WhiteElo "2385"]
[BlackElo "2530"]
[TimeControl "180+1"]
[EndTime "8:37:07 PDT"]
[Termination "Coach_Istvanovszki won on time"]

1. d4 {[%clk 0:03:00.9]} 1... c5 {[%clk 0:03:00.1]} 2. d5 {[%clk 0:03:00.6]}
2... g6 {[%clk 0:03:00.3]} 3. c4 {[%clk 0:03:00]} 3... Bg7 {[%clk 0:03:00.6]} 4.
Nc3 {[%clk 0:03:00.1]} 4... d6 {[%clk 0:03:01.1]} 5. e4 {[%clk 0:02:57.4]} 5...
Bxc3+ {[%clk 0:03:01.1]} 6. bxc3 {[%clk 0:02:56.9]} 6... e5 {[%clk 0:03:02]} 7.
h4 {[%clk 0:02:53.5]} 7... Nd7 {[%clk 0:03:02]} 8. h5 {[%clk 0:02:53]} 8... h6
{[%clk 0:03:02.6]} 9. hxg6 {[%clk 0:02:52]} 9... fxg6 {[%clk 0:03:02.8]} 10. Nf3
{[%clk 0:02:42.3]} 10... Qf6 {[%clk 0:03:03.1]} 11. Nh4 {[%clk 0:02:38.5]} 11...
Ne7 {[%clk 0:02:49.9]} 12. Qf3 {[%clk 0:02:26.3]} 12... g5 {[%clk 0:02:39.1]}
13. Nf5 {[%clk 0:02:14.1]} 13... Nxf5 {[%clk 0:02:36.1]} 14. Qxf5 {[%clk
0:02:09.8]} 14... O-O {[%clk 0:02:16.8]} 15. Qxf6 {[%clk 0:01:50.3]} 15... Rxf6
{[%clk 0:02:17.7]} 16. a4 {[%clk 0:01:38.7]} 16... a5 {[%clk 0:02:16.5]} 17. Rb1
{[%clk 0:01:32]} 17... Ra6 {[%clk 0:02:15.5]} 18. Bd3 {[%clk 0:00:39.2]} 18...
Nb6 {[%clk 0:02:13.7]} 19. f3 {[%clk 0:00:36.9]} 19... Nxa4 {[%clk 0:02:04.3]}
20. Bd2 {[%clk 0:00:33.3]} 20... Nb6 {[%clk 0:02:02.2]} 21. Ke2 {[%clk
0:00:31.6]} 21... Bd7 {[%clk 0:02:01.8]} 22. g4 {[%clk 0:00:26.6]} 22... a4
{[%clk 0:01:58.4]} 23. Ra1 {[%clk 0:00:21.2]} 23... Kf7 {[%clk 0:01:57.1]} 24.
Rhb1 {[%clk 0:00:20.7]} 24... Ke7 {[%clk 0:01:55.1]} 25. Bc1 {[%clk 0:00:17.7]}
25... Kd8 {[%clk 0:01:54.8]} 26. Ba3 {[%clk 0:00:15.9]} 26... Kc7 {[%clk
0:01:55.2]} 27. Rb2 {[%clk 0:00:16.2]} 27... Rf8 {[%clk 0:01:48.2]} 28. Rab1
{[%clk 0:00:15.7]} 28... Rh8 {[%clk 0:01:48.6]} 29. Kf2 {[%clk 0:00:12.1]} 29...
h5 {[%clk 0:01:47.5]} 30. gxh5 {[%clk 0:00:12.6]} 30... Rxh5 {[%clk 0:01:48.3]}
31. Kg2 {[%clk 0:00:13.1]} 31... Bc8 {[%clk 0:01:44.6]} 32. Be2 {[%clk
0:00:12.2]} 32... Rh4 {[%clk 0:01:40.3]} 33. Kg3 {[%clk 0:00:11.9]} 33... Nd7
{[%clk 0:01:37.4]} 34. Bf1 {[%clk 0:00:09]} 34... Nf6 {[%clk 0:01:36.9]} 35. Be2
{[%clk 0:00:04.8]} 35... Nh5+ {[%clk 0:01:36.5]} 36. Kf2 {[%clk 0:00:04.6]}
36... Nf4 {[%clk 0:01:37.1]} 37. Ke3 {[%clk 0:00:04.9]} 37... Rh2 {[%clk
0:01:36.1]} 38. Bf1 {[%clk 0:00:05.1]} 38... Rh4 {[%clk 0:01:29.9]} 39. Bd3
{[%clk 0:00:04.4]} 39... g4 {[%clk 0:01:24.4]} 40. fxg4 {[%clk 0:00:05.3]} 40...
Rh3+ {[%clk 0:01:24.4]} 0-1

[Event "Early-Titled-Tuesday-Blitz-March-26-2024"]
[Site "Chess.com"]
[Date "2024.03.26"]
[Round "4"]
[White "Grischuk"]
[Black "quizden37"]
[Result "1-0"]
[WhiteElo "3060"]
[BlackElo "2848"]
[TimeControl "180+1"]
[EndTime "8:37:10 PDT"]
[Termination "Grischuk won by resignation"]

1. d4 {[%clk 0:02:58.4]} 1... Nf6 {[%clk 0:02:59.8]} 2. c4 {[%clk 0:02:57.5]}
2... g6 {[%clk 0:02:59.1]} 3. g3 {[%clk 0:02:57.7]} 3... Bg7 {[%clk 0:02:59.7]}
4. Bg2 {[%clk 0:02:58.4]} 4... d6 {[%clk 0:03:00.2]} 5. Nc3 {[%clk 0:02:57.7]}
5... O-O {[%clk 0:03:00.9]} 6. Nf3 {[%clk 0:02:57.9]} 6... Nbd7 {[%clk
0:02:58.4]} 7. O-O {[%clk 0:02:57.5]} 7... e5 {[%clk 0:02:58.6]} 8. e4 {[%clk
0:02:57.2]} 8... exd4 {[%clk 0:02:58.5]} 9. Nxd4 {[%clk 0:02:58.1]} 9... Re8
{[%clk 0:02:59.2]} 10. h3 {[%clk 0:02:52.4]} 10... Nc5 {[%clk 0:02:59.4]} 11.
Re1 {[%clk 0:02:51.5]} 11... a5 {[%clk 0:03:00.1]} 12. Bf4 {[%clk 0:02:48.6]}
12... Nh5 {[%clk 0:02:51.5]} 13. Be3 {[%clk 0:02:48.1]} 13... Nf6 {[%clk
0:02:51.8]} 14. Qc2 {[%clk 0:02:48.1]} 14... c6 {[%clk 0:02:50.7]} 15. b3 {[%clk
0:02:45]} 15... Qc7 {[%clk 0:02:50.1]} 16. Rad1 {[%clk 0:02:43.6]} 16... Be6
{[%clk 0:02:48.7]} 17. Ndb5 {[%clk 0:02:28.5]} 17... cxb5 {[%clk 0:02:43.5]} 18.
Nxb5 {[%clk 0:02:29.4]} 18... Qe7 {[%clk 0:02:11.1]} 19. Nxd6 {[%clk 0:02:29.4]}
19... Rec8 {[%clk 0:02:10.4]} 20. f4 {[%clk 0:02:19.3]} 20... Na6 {[%clk
0:01:52.7]} 21. e5 {[%clk 0:02:04.1]} 21... Nh5 {[%clk 0:01:51.3]} 22. Nxc8
{[%clk 0:01:45.1]} 22... Rxc8 {[%clk 0:01:49.6]} 23. g4 {[%clk 0:01:42.5]} 23...
Nb4 {[%clk 0:01:49.8]} 24. Qf2 {[%clk 0:01:41.5]} 24... Nxf4 {[%clk 0:01:43.5]}
25. Bxf4 {[%clk 0:01:42.4]} 25... a4 {[%clk 0:01:30.1]} 26. Rd6 {[%clk
0:01:37.6]} 26... Bf8 {[%clk 0:01:24.6]} 27. Red1 {[%clk 0:01:30.1]} 27... Qc7
{[%clk 0:01:24.3]} 28. Kh2 {[%clk 0:01:27.1]} 28... Ra8 {[%clk 0:01:16.5]} 29.
R1d2 {[%clk 0:01:25.3]} 29... axb3 {[%clk 0:01:12.5]} 30. axb3 {[%clk
0:01:26.2]} 30... Ra3 {[%clk 0:01:13.2]} 31. Rd8 {[%clk 0:01:16.2]} 31... Rxb3
{[%clk 0:01:00.3]} 32. Bh6 {[%clk 0:00:42.3]} 32... Qxe5+ {[%clk 0:01:00.3]} 33.
Kg1 {[%clk 0:00:42.3]} 33... Rb1+ {[%clk 0:00:49.4]} 34. Bf1 {[%clk 0:00:42.4]}
1-0

[Event "Early-Titled-Tuesday-Blitz-March-26-2024"]
[Site "Chess.com"]
[Date "2024.03.26"]
[Round "4"]
[White "Andrey_Klymchuk"]
[Black "tusplingher"]
[Result "1-0"]
[WhiteElo "2695"]
[BlackElo "2509"]
[TimeControl "180+1"]
[EndTime "8:37:15 PDT"]
[Termination "Andrey_Klymchuk won by resignation"]

1. e4 {[%clk 0:03:00.9]} 1... c5 {[%clk 0:02:59.9]} 2. Nf3 {[%clk 0:03:00.5]}
2... d6 {[%clk 0:03:00.2]} 3. d4 {[%clk 0:03:00.6]} 3... cxd4 {[%clk 0:03:00.9]}
4. Nxd4 {[%clk 0:03:01.4]} 4... Nf6 {[%clk 0:03:01.5]} 5. f3 {[%clk 0:03:01.4]}
5... e5 {[%clk 0:02:56.5]} 6. Bb5+ {[%clk 0:03:01.4]} 6... Bd7 {[%clk
0:02:53.7]} 7. Bxd7+ {[%clk 0:03:00.9]} 7... Nbxd7 {[%clk 0:02:53.7]} 8. Nf5
{[%clk 0:03:01.8]} 8... Qc7 {[%clk 0:02:48.8]} 9. Nc3 {[%clk 0:03:00.3]} 9... a6
{[%clk 0:02:46.4]} 10. Bg5 {[%clk 0:02:59.8]} 10... g6 {[%clk 0:02:23.5]} 11.
Ne3 {[%clk 0:02:58.4]} 11... Bg7 {[%clk 0:02:17.3]} 12. Qd2 {[%clk 0:02:57.9]}
12... b5 {[%clk 0:02:08.8]} 13. O-O-O {[%clk 0:02:56.6]} 13... O-O {[%clk
0:02:04.9]} 14. Kb1 {[%clk 0:02:52.1]} 14... b4 {[%clk 0:01:50.9]} 15. Ncd5
{[%clk 0:02:50.2]} 15... Nxd5 {[%clk 0:01:50.4]} 16. Nxd5 {[%clk 0:02:50.5]}
16... Qb7 {[%clk 0:01:43]} 17. Qxb4 {[%clk 0:02:48.2]} 17... Qxb4 {[%clk
0:01:39.3]} 18. Nxb4 {[%clk 0:02:49.1]} 18... a5 {[%clk 0:01:36.7]} 19. Nd5
{[%clk 0:02:44.7]} 19... Rfb8 {[%clk 0:01:30.5]} 20. Be3 {[%clk 0:02:38.6]}
20... Rb7 {[%clk 0:01:23.2]} 21. a4 {[%clk 0:02:37.6]} 21... Rab8 {[%clk
0:01:19.3]} 22. b3 {[%clk 0:02:37.5]} 22... f5 {[%clk 0:01:18.9]} 23. Rd3 {[%clk
0:02:36.4]} 23... fxe4 {[%clk 0:01:11.7]} 24. fxe4 {[%clk 0:02:36.1]} 24... Kf7
{[%clk 0:01:09.6]} 25. Rhd1 {[%clk 0:02:35.3]} 25... Bf8 {[%clk 0:01:09.5]} 26.
Rc3 {[%clk 0:02:25.5]} 26... Ke6 {[%clk 0:01:02.5]} 27. Rf1 {[%clk 0:02:23.8]}
27... h6 {[%clk 0:00:51.9]} 28. Rc6 {[%clk 0:02:20.7]} 28... Bg7 {[%clk
0:00:44.8]} 29. Ka2 {[%clk 0:02:19.8]} 29... Nf8 {[%clk 0:00:41.8]} 30. Rf3
{[%clk 0:02:11.2]} 30... Nh7 {[%clk 0:00:33.2]} 31. Ra6 {[%clk 0:02:08.8]} 31...
Nf6 {[%clk 0:00:31.6]} 32. Nxf6 {[%clk 0:02:08]} 32... Bxf6 {[%clk 0:00:31.9]}
33. Rxa5 {[%clk 0:02:07.8]} 33... Rb4 {[%clk 0:00:30.9]} 34. Bxh6 {[%clk
0:01:49.9]} 34... Rxe4 {[%clk 0:00:26]} 35. Be3 {[%clk 0:01:49.5]} 35... Rc8
{[%clk 0:00:23.1]} 36. c4 {[%clk 0:01:48.4]} 36... Rg4 {[%clk 0:00:16.6]} 37. g3
{[%clk 0:01:46.7]} 37... Rh8 {[%clk 0:00:14.6]} 38. h4 {[%clk 0:01:38.8]} 38...
e4 {[%clk 0:00:13.5]} 39. Rxf6+ {[%clk 0:01:38.7]} 39... Kxf6 {[%clk 0:00:10.4]}
40. Bd4+ {[%clk 0:01:39]} 40... Ke6 {[%clk 0:00:11.2]} 41. Bxh8 {[%clk 0:01:39]}
41... e3 {[%clk 0:00:11]} 42. Ra8 {[%clk 0:01:35.7]} 42... Kd7 {[%clk
0:00:08.7]} 43. Kb2 {[%clk 0:01:29.2]} 43... Rxg3 {[%clk 0:00:07.4]} 44. Kc2
{[%clk 0:01:27.7]} 44... e2 {[%clk 0:00:06.5]} 45. Kd2 {[%clk 0:01:27.9]} 45...
Rxb3 {[%clk 0:00:05.9]} 46. Kxe2 {[%clk 0:01:26.4]} 46... Rc3 {[%clk 0:00:05.5]}
47. Bxc3 {[%clk 0:01:25.5]} 1-0

[Event "Early-Titled-Tuesday-Blitz-March-26-2024"]
[Site "Chess.com"]
[Date "2024.03.26"]
[Round "4"]
[White "PapaieDudu"]
[Black "AnaKuchava"]
[Result "1-0"]
[WhiteElo "2452"]
[BlackElo "2137"]
[TimeControl "180+1"]
[EndTime "8:37:18 PDT"]
[Termination "PapaieDudu won by resignation"]

1. Nf3 {[%clk 0:02:48]} 1... d5 {[%clk 0:02:57.4]} 2. d4 {[%clk 0:02:47.8]} 2...
Nf6 {[%clk 0:02:56.3]} 3. c4 {[%clk 0:02:47.8]} 3... e6 {[%clk 0:02:55.9]} 4.
Nc3 {[%clk 0:02:48]} 4... Be7 {[%clk 0:02:55.3]} 5. Bg5 {[%clk 0:02:48.5]} 5...
O-O {[%clk 0:02:52.7]} 6. e3 {[%clk 0:02:48.4]} 6... h6 {[%clk 0:02:52.8]} 7.
Bh4 {[%clk 0:02:48.4]} 7... b6 {[%clk 0:02:53.3]} 8. Bd3 {[%clk 0:02:48.1]} 8...
Bb7 {[%clk 0:02:53.1]} 9. O-O {[%clk 0:02:47.6]} 9... Nbd7 {[%clk 0:02:52.7]}
10. Qe2 {[%clk 0:02:47.3]} 10... c5 {[%clk 0:02:52.8]} 11. Rfd1 {[%clk
0:02:46.7]} 11... cxd4 {[%clk 0:02:52.1]} 12. exd4 {[%clk 0:02:45.1]} 12... Rc8
{[%clk 0:02:48.3]} 13. Rac1 {[%clk 0:02:42.1]} 13... a6 {[%clk 0:02:45.7]} 14.
cxd5 {[%clk 0:02:40]} 14... Nxd5 {[%clk 0:02:43.6]} 15. Bxe7 {[%clk 0:02:38.6]}
15... Qxe7 {[%clk 0:02:38.3]} 16. Bxa6 {[%clk 0:02:32]} 16... Nxc3 {[%clk
0:02:36.9]} 17. Rxc3 {[%clk 0:02:28.2]} 17... Bxa6 {[%clk 0:02:21.4]} 18. Qxa6
{[%clk 0:02:28.4]} 18... Ra8 {[%clk 0:02:22.1]} 19. Qc4 {[%clk 0:02:25.3]} 19...
Rfc8 {[%clk 0:02:12.6]} 20. Qb3 {[%clk 0:02:23.2]} 20... Rxc3 {[%clk 0:02:03.5]}
21. bxc3 {[%clk 0:02:21.4]} 21... Qa3 {[%clk 0:01:59.4]} 22. Qb5 {[%clk
0:01:15.6]} 22... Ra7 {[%clk 0:01:33.8]} 23. h3 {[%clk 0:00:57.3]} 23... Qxc3
{[%clk 0:01:27.3]} 24. d5 {[%clk 0:00:41.1]} 24... exd5 {[%clk 0:01:08.7]} 25.
Rxd5 {[%clk 0:00:39.5]} 25... Qc1+ {[%clk 0:01:07.7]} 26. Kh2 {[%clk 0:00:39.6]}
26... Qf4+ {[%clk 0:01:07.1]} 27. Kh1 {[%clk 0:00:37.1]} 27... Qc1+ {[%clk
0:01:06.2]} 28. Ng1 {[%clk 0:00:35.3]} 28... Nf6 {[%clk 0:00:45.8]} 29. Rd8+
{[%clk 0:00:33]} 29... Kh7 {[%clk 0:00:45.4]} 30. Qf5+ {[%clk 0:00:31.3]} 30...
g6 {[%clk 0:00:22.8]} 31. Qxf6 {[%clk 0:00:30.5]} 1-0

[Event "Early-Titled-Tuesday-Blitz-March-26-2024"]
[Site "Chess.com"]
[Date "2024.03.26"]
[Round "4"]
[White "PeshkaCh"]
[Black "nabukatnezarr"]
[Result "1-0"]
[WhiteElo "2854"]
[BlackElo "2591"]
[TimeControl "180+1"]
[EndTime "8:37:20 PDT"]
[Termination "PeshkaCh won by resignation"]

1. Nf3 {[%clk 0:03:00.9]} 1... Nf6 {[%clk 0:02:57.5]} 2. d4 {[%clk 0:03:01]}
2... e6 {[%clk 0:02:57.1]} 3. c4 {[%clk 0:03:01.3]} 3... c5 {[%clk 0:02:57.2]}
4. g3 {[%clk 0:03:00.4]} 4... cxd4 {[%clk 0:02:56.3]} 5. Nxd4 {[%clk 0:03:01.3]}
5... d5 {[%clk 0:02:56.6]} 6. Bg2 {[%clk 0:03:01.8]} 6... e5 {[%clk 0:02:56.4]}
7. Nf3 {[%clk 0:02:45.7]} 7... d4 {[%clk 0:02:55.4]} 8. O-O {[%clk 0:02:41]}
8... Nc6 {[%clk 0:02:54]} 9. a3 {[%clk 0:02:37.7]} 9... Bd6 {[%clk 0:01:47]} 10.
e3 {[%clk 0:02:29.6]} 10... d3 {[%clk 0:01:32]} 11. Nc3 {[%clk 0:02:10.6]} 11...
Qe7 {[%clk 0:01:24.2]} 12. Nd5 {[%clk 0:01:54.7]} 12... Nxd5 {[%clk 0:01:17]}
13. cxd5 {[%clk 0:01:55.6]} 13... Nd8 {[%clk 0:01:10.7]} 14. e4 {[%clk
0:01:47.5]} 14... O-O {[%clk 0:01:02.6]} 15. Qxd3 {[%clk 0:01:46.8]} 15... f5
{[%clk 0:01:01.6]} 16. Nd2 {[%clk 0:01:44.8]} 16... f4 {[%clk 0:01:00.9]} 17.
Nc4 {[%clk 0:01:40.5]} 17... Bg4 {[%clk 0:00:56.5]} 18. Bd2 {[%clk 0:01:06.9]}
18... f3 {[%clk 0:00:55.3]} 19. Bh1 {[%clk 0:01:07]} 19... Nf7 {[%clk
0:00:44.2]} 20. Bxf3 {[%clk 0:01:01.6]} 20... Bxf3 {[%clk 0:00:36.6]} 21. Qxf3
{[%clk 0:01:02.5]} 21... Qc7 {[%clk 0:00:33.7]} 22. Qb3 {[%clk 0:00:52.5]} 22...
b5 {[%clk 0:00:31.6]} 23. Qxb5 {[%clk 0:00:46.5]} 23... Rfc8 {[%clk 0:00:31]}
24. Rac1 {[%clk 0:00:43.7]} 24... Rab8 {[%clk 0:00:30.7]} 25. Nxd6 {[%clk
0:00:34.6]} 25... Qxd6 {[%clk 0:00:19.9]} 26. Rxc8+ {[%clk 0:00:34.5]} 26...
Rxc8 {[%clk 0:00:20.8]} 27. Rc1 {[%clk 0:00:34.8]} 27... Rxc1+ {[%clk
0:00:19.1]} 28. Bxc1 {[%clk 0:00:35.7]} 28... h6 {[%clk 0:00:19.3]} 29. Qe8+
{[%clk 0:00:35.7]} 29... Qf8 {[%clk 0:00:16.9]} 30. Qxf8+ {[%clk 0:00:33.2]}
30... Kxf8 {[%clk 0:00:17.8]} 31. Be3 {[%clk 0:00:33.9]} 1-0

[Event "Early-Titled-Tuesday-Blitz-March-26-2024"]
[Site "Chess.com"]
[Date "2024.03.26"]
[Round "4"]
[White "PepeCuenca"]
[Black "a-z30"]
[Result "1-0"]
[WhiteElo "2745"]
[BlackElo "2436"]
[TimeControl "180+1"]
[EndTime "8:37:24 PDT"]
[Termination "PepeCuenca won on time"]

1. d4 {[%clk 0:03:00.9]} 1... d6 {[%clk 0:03:00.9]} 2. e4 {[%clk 0:02:58.8]}
2... Nf6 {[%clk 0:03:01.8]} 3. Nc3 {[%clk 0:02:58.5]} 3... g6 {[%clk 0:03:02.1]}
4. Bf4 {[%clk 0:02:58.2]} 4... Bg7 {[%clk 0:03:02.7]} 5. Qd2 {[%clk 0:02:58.8]}
5... O-O {[%clk 0:03:03]} 6. O-O-O {[%clk 0:02:59.1]} 6... Nc6 {[%clk
0:03:00.6]} 7. f3 {[%clk 0:02:59.3]} 7... Rb8 {[%clk 0:02:35.4]} 8. Kb1 {[%clk
0:02:51.4]} 8... Nd7 {[%clk 0:02:16.9]} 9. Bh6 {[%clk 0:02:46.1]} 9... Bxd4
{[%clk 0:02:11.9]} 10. Bxf8 {[%clk 0:02:43.7]} 10... Kxf8 {[%clk 0:01:38.7]} 11.
h4 {[%clk 0:02:38.4]} 11... Bg7 {[%clk 0:01:35.7]} 12. h5 {[%clk 0:02:33.9]}
12... Kg8 {[%clk 0:01:34.9]} 13. hxg6 {[%clk 0:02:32.7]} 13... hxg6 {[%clk
0:01:34.3]} 14. g4 {[%clk 0:02:20]} 14... Nde5 {[%clk 0:01:19.4]} 15. g5 {[%clk
0:02:13]} 15... Be6 {[%clk 0:01:15.3]} 16. Nd5 {[%clk 0:02:04.8]} 16... b5
{[%clk 0:00:33.9]} 17. f4 {[%clk 0:01:28.4]} 17... Nc4 {[%clk 0:00:32.7]} 18.
Bxc4 {[%clk 0:01:29.1]} 18... bxc4 {[%clk 0:00:32]} 19. c3 {[%clk 0:01:29.8]}
19... Rb5 {[%clk 0:00:24.8]} 20. Nf3 {[%clk 0:01:14.6]} 20... Bg4 {[%clk
0:00:24.3]} 21. Rdf1 {[%clk 0:01:07]} 21... e6 {[%clk 0:00:23.7]} 22. Ne3 {[%clk
0:01:03.2]} 22... Bxf3 {[%clk 0:00:23]} 23. Rxf3 {[%clk 0:01:01.8]} 23... Qb8
{[%clk 0:00:14.1]} 24. Rfh3 {[%clk 0:00:57.4]} 24... Nb4 {[%clk 0:00:05.2]} 25.
Qh2 {[%clk 0:00:50.6]} 25... Kf8 {[%clk 0:00:02.9]} 26. Rh8+ {[%clk 0:00:49.5]}
26... Bxh8 {[%clk 0:00:03]} 27. Qxh8+ {[%clk 0:00:50.4]} 27... Ke7 {[%clk
0:00:03.4]} 28. Qf6+ {[%clk 0:00:51.1]} 28... Kd7 {[%clk 0:00:03]} 29. Qxf7+
{[%clk 0:00:51.6]} 29... Kc6 {[%clk 0:00:02.3]} 30. Qxe6 {[%clk 0:00:43]} 30...
Nd3 {[%clk 0:00:01.4]} 31. Qxc4+ {[%clk 0:00:41.9]} 1-0